fUSD/lending_fUSD_20251222
["ID","MTS","AMOUNT","RATE_DAILY","PERIOD"]
[399519865,1766430647230,-150.0,0.00016765,2]
[399519866,1766430647239,-150.0,0.00016793,2]
[399519867,1766430647248,-175.69,0.00016798,2]
[399519868,1766430647257,-150.0,0.00016807,2]
[399519869,1766430647268,-150.0,0.00016832,2]
[399519870,1766430647278,-150.0,0.00016832,2]
[399519871,1766430647289,-150.0,0.00016839,2]
[399519872,1766430647299,-150.0,0.0001687,2]
[399519873,1766430647308,-150.0,0.00016873,2]
[399519874,1766430647318,-150.0,0.00016897,2]
[399519875,1766430647327,-10000.0,0.000169,2]
[399519876,1766430647336,-5487.88109148,0.000169,2]
[399519877,1766430647347,-186.21416739,0.000169,2]
[399519878,1766430647357,-14665.25537738,0.000169,2]
[399519879,1766430647366,-150.0,0.00016909,2]
[399519880,1766430647376,-150.0,0.00016909,2]
[399519881,1766430647385,-150.0,0.00016912,2]
[399519882,1766430647395,-194.16,0.00016929,2]
[399519883,1766430647404,-150.0,0.00016948,2]
[399519884,1766430647413,-457.0,0.00016959,2]
[399519885,1766430647422,-150.0,0.00016973,2]
[399519886,1766430647431,-500.0,0.00016983,2]
[399519887,1766430647441,-217.8076658,0.00016983,2]
[399519888,1766430647450,-600.0,0.00016986,2]
[399519889,1766430647460,-174.96680865,0.00016986,2]
[399519890,1766430647470,-190.72072337,0.00016986,2]
[399519891,1766430647479,-178.51553078,0.00016986,2]
[399519892,1766430647489,-150.0,0.00016986,2]
[399519893,1766430647499,-150.00000001,0.00016986,2]
[399519894,1766430647508,-151.97105388,0.00016986,2]
[399519895,1766430647518,-153.06018393,0.00016986,2]
[399519896,1766430647529,-153.06730128,0.00016986,2]
[399519897,1766430647539,-150.0,0.00016986,2]
[399519898,1766430647552,-500.0,0.00016995,2]
[399519899,1766430647561,-500.0,0.00016995,2]
[399519900,1766430647571,-500.0,0.00016995,2]
[399519901,1766430647582,-500.0,0.00016995,2]
[399519902,1766430647591,-500.0,0.00016995,2]
[399519903,1766430647601,-500.0,0.00016995,2]
[399519904,1766430647622,-171.3635424,0.00016996,2]
[399519905,1766430647639,-395248.1491772,0.00016996,2]
[399519906,1766430647649,-19042.5320099,0.00016996,2]
[399519907,1766430647658,-500.0,0.00016998,2]
[399519908,1766430647668,-300.0,0.00016999,2]
[399519909,1766430647677,-300.0,0.00016999,2]
[399519910,1766430647687,-666.0,0.00016999,2]
[399519911,1766430647695,-300.0,0.00016999,2]
[399519912,1766430647705,-679.17,0.00016999,2]
[399519913,1766430647714,-679.17,0.00016999,2]
[399519914,1766430647723,-679.17,0.00016999,2]
[399519915,1766430647732,-679.17,0.00016999,2]
[399519916,1766430647741,-679.17,0.00016999,2]
[399519917,1766430647751,-679.17,0.00016999,2]
[399519918,1766430647760,-679.17,0.00016999,2]
[399519919,1766430647769,-679.17,0.00016999,2]
[399519920,1766430647779,-679.17,0.00016999,2]
[399519921,1766430647788,-679.17,0.00016999,2]
[399519922,1766430647797,-679.17,0.00016999,2]
[399519923,1766430647806,-679.17,0.00016999,2]
[399519924,1766430647815,-679.17,0.00016999,2]
[399519925,1766430647825,-679.17,0.00016999,2]
[399519926,1766430647834,-679.17,0.00016999,2]
[399519927,1766430647844,-679.17,0.00016999,2]
[399519928,1766430647854,-679.17,0.00016999,2]
[399519929,1766430647863,-679.17,0.00016999,2]
[399519930,1766430647873,-679.17695213,0.00016999,2]
[399519931,1766430647883,-300.0,0.00016999,2]
[399519932,1766430647892,-500.0,0.00016999,2]
[399519933,1766430647901,-500.0,0.00016999,2]
[399519934,1766430647911,-500.0,0.00016999,2]
[399519935,1766430647922,-500.0,0.00016999,2]
[399519936,1766430647932,-510.46904763,0.00016999,2]
[399519937,1766430647943,-300.0,0.00016999,2]
[399519938,1766430647952,-500.0,0.00016999,2]
[399519939,1766430647961,-500.0,0.00016999,2]
[399519940,1766430647971,-500.0,0.00016999,2]
[399519941,1766430647980,-500.0,0.00016999,2]
[399519942,1766430647990,-500.0,0.00016999,2]
[399519943,1766430647999,-500.0,0.00016999,2]
[399519944,1766430648009,-500.0,0.00016999,2]
[399519945,1766430648018,-500.0,0.00016999,2]
[399519946,1766430648027,-500.0,0.00016999,2]
[399519947,1766430648037,-500.0,0.00016999,2]
[399519949,1766430648046,-500.0,0.00016999,2]
[399519951,1766430648055,-500.0,0.00016999,2]
[399519952,1766430648065,-500.0,0.00016999,2]
[399519954,1766430648074,-500.0,0.00016999,2]
[399519956,1766430648083,-500.0,0.00016999,2]
[399519958,1766430648092,-500.0,0.00016999,2]
[399519960,1766430648102,-500.0,0.00016999,2]
[399519962,1766430648111,-284.94739405,0.00016999,2]
[399519964,1766430648120,-300.0,0.00016999,2]
[399519966,1766430648129,-666.0,0.00016999,2]
[399519968,1766430648138,-500.0,0.00016999,2]
[399519970,1766430648147,-500.0,0.00016999,2]
[399519972,1766430648156,-500.0,0.00016999,2]
[399519974,1766430648166,-500.0,0.00016999,2]
[399519988,1766430648399,-500.0,0.00016999,2]
[399519989,1766430648409,-500.0,0.00016999,2]
[399519990,1766430648419,-500.0,0.00016999,2]
[399519991,1766430648428,-500.0,0.00016999,2]
[399519992,1766430648437,-500.0,0.00016999,2]
[399519993,1766430648447,-591.86528871,0.00016999,2]
[399519994,1766430648456,-2038326.3680885,0.00017,2]
[399519995,1766430648466,-2103034.08979303,0.00017,2]
[399519996,1766430649016,-500.0,0.00014647,2]
[399519997,1766430649026,-44025.0,0.00017,2]
[399520001,1766430649135,-500.0,0.00014647,2]
[399520002,1766430649145,-500.0,0.00014647,2]
[399520003,1766430649154,-500.0,0.00014647,2]
[399520004,1766430649164,-500.0,0.00014647,2]
[399520005,1766430649174,-500.0,0.00014647,2]
[399520006,1766430649193,-1053.68,0.00017,2]
[399520007,1766430649803,-4795.57857143,0.00017,2]
[399520008,1766430649816,-32131.87910236,0.00017,2]
[399520009,1766430649841,-48291.55773212,0.00017,2]
[399520010,1766430649935,-7376.00327993,0.00017,2]
[399520011,1766430649947,-2319.57585206,0.00017,2]
[399520012,1766430649970,-375.1875,0.00017,2]
[399520013,1766430649984,-505.01796416,0.00017,2]
[399520014,1766430650010,-3352.16471095,0.00017,2]
[399520029,1766431832028,-151.97,0.00010979,2]
[399520030,1766431832038,-250.0,0.00011013,2]
[399520031,1766431832047,-195.0,0.00011047,2]
[399520032,1766431832056,-266.86564798,0.00011116,2]
[399520033,1766431832069,-33.13435202,0.00011116,2]
[399520034,1766431832078,-195.0,0.00011253,2]
[399520035,1766431832087,-192.49638971,0.00011976,2]
[399520036,1766431832097,-195.0,0.00012077,2]
[399520037,1766431832107,-272.89132981,0.00012077,2]
[399520038,1766431832122,-27.10867019,0.00012077,2]
[399520039,1766431832132,-354.0,0.00012077,2]
[399520040,1766431832141,-195.0,0.00012077,2]
[399520041,1766431832151,-250.0,0.00012077,2]
[399520042,1766431832160,-150.0,0.00012891,2]
[399520043,1766431832170,-483.0,0.00012956,2]
[399520044,1766431832179,-375.0,0.00012982,2]
[399520045,1766431832189,-208.29,0.00012985,2]
[399520047,1766431832198,-242.35828294,0.00013008,2]
[399520048,1766431832212,-1949.0,0.0001302,2]
[399520049,1766431832222,-790.28912033,0.00013046,2]
[399520050,1766431832232,-1200.0,0.00013097,2]
[399520051,1766431832242,-1209.0,0.00013098,2]
[399520052,1766431832252,-260.0,0.00013121,2]
[399520053,1766431832262,-300.0,0.00013122,2]
[399520054,1766431832271,-300.0,0.00013122,2]
[399520056,1766431832282,-300.0,0.00013122,2]
[399520058,1766431832292,-211.0,0.00013122,2]
[399520060,1766431832301,-701.32956144,0.00013123,2]
[399520062,1766431832313,-498.67043856,0.00013123,2]
[399520064,1766431832325,-72.21401028,0.00013124,2]
[399520067,1766431832344,-957.78598972,0.00013124,2]
[399520069,1766431832354,-756.0,0.00013291,2]
[399520070,1766431832364,-308.0,0.00013317,2]
[399520071,1766431832373,-1610.0,0.00013344,2]
[399520072,1766431832383,-225.94,0.00013351,2]
[399520073,1766431832393,-219.34,0.00013354,2]
[399520074,1766431832402,-351.88401028,0.00013439,2]
[399520075,1766431838037,-18.11598972,0.00013439,2]
[399520076,1766431838048,-365.0,0.00013466,2]
[399520077,1766431838058,-277.0,0.00013492,2]
[399520078,1766431838068,-150.0,0.00013492,2]
[399520079,1766431838079,-1211.67487286,0.00013523,2]
[399520080,1766431838092,-667.32512714,0.00013523,2]
[399520081,1766431838101,-446.15512474,0.0001355,2]
[399520082,1766431838112,-474.16526531,0.0001355,2]
[399520083,1766431838124,-844.67960995,0.0001355,2]
[399520084,1766431838134,-1679.0,0.00013577,2]
[399520085,1766431838143,-923.50815713,0.00013604,2]
[399520086,1766431838153,-959.43,0.00013699,2]
[399520087,1766431838163,-182.42775107,0.00013699,2]
[399520088,1766431838172,-166.66,0.00013699,2]
[399520089,1766431838182,-15519.23047632,0.0001378,2]
[399520131,1766431840102,-173.938865,0.00013,2]
[399520133,1766431840112,-197.73286734,0.0001378,2]
[399520135,1766431840127,-288.32826766,0.0001378,2]
[399520137,1766431840159,-251.61948439,0.0001378,2]
[399520138,1766431840171,-663.77839934,0.0001378,2]
[399520139,1766431840182,-496.1073209,0.0001378,2]
[399520140,1766431840219,-40442.15269104,0.0001378,2]
[399520141,1766431840541,-617.33224784,0.0001378,2]
[399520143,1766431840565,-2291.63780174,0.0001378,2]
[399520144,1766431840578,-939232.08044343,0.0001378,2]
[399520145,1766431840588,-4581.4363,0.00013781,2]
[399520147,1766431840607,-1106.6054,0.00013781,2]
[399520149,1766431840619,-1830.57,0.00013824,2]
[399520150,1766431840629,-200.0,0.00013872,2]
[399520151,1766431840639,-200.0,0.00013872,2]
[399520152,1766431840650,-500.0,0.00013872,2]
[399520153,1766431840660,-500.0,0.00013872,2]
[399520154,1766431840671,-196.17335195,0.00013872,2]
[399520155,1766431840682,-500.0,0.00013872,2]
[399520156,1766431840693,-500.0,0.00013872,2]
[399520157,1766431840703,-500.0,0.00013872,2]
[399520158,1766431840714,-500.0,0.00013872,2]
[399520159,1766431840726,-500.0,0.00013872,2]
[399520160,1766431840737,-500.0,0.00013872,2]
[399520161,1766431840747,-500.0,0.00013872,2]
[399520162,1766431840758,-500.0,0.00013872,2]
[399520164,1766431840768,-500.0,0.00013872,2]
[399520166,1766431840779,-322.62141336,0.00013872,2]
[399520168,1766431840789,-500.0,0.00013872,2]
[399520169,1766431840800,-500.0,0.00013872,2]
[399520170,1766431840810,-500.0,0.00013872,2]
[399520171,1766431840822,-500.0,0.00013872,2]
[399520172,1766431840834,-500.0,0.00013872,2]
[399520173,1766431840844,-500.0,0.00013872,2]
[399520174,1766431840855,-500.0,0.00013872,2]
[399520175,1766431840865,-500.0,0.00013872,2]
[399520176,1766431840876,-500.0,0.00013872,2]
[399520177,1766431840888,-500.0,0.00013872,2]
[399520178,1766431840899,-500.0,0.00013872,2]
[399520179,1766431840910,-500.0,0.00013872,2]
[399520180,1766431840920,-200.0,0.00013872,2]
[399520181,1766431840931,-151.0,0.00013872,2]
[399520182,1766431840942,-151.0,0.00013872,2]
[399520183,1766431840952,-151.0,0.00013872,2]
[399520184,1766431840964,-151.0,0.00013872,2]
[399520185,1766431840975,-151.0,0.00013872,2]
[399520186,1766431840986,-151.0,0.00013872,2]
[399520187,1766431840997,-151.0,0.00013872,2]
[399520188,1766431841007,-151.0,0.00013872,2]
[399520189,1766431841018,-151.0,0.00013872,2]
[399520190,1766431841028,-151.0,0.00013872,2]
[399520191,1766431841039,-151.0,0.00013872,2]
[399520192,1766431841050,-151.0,0.00013878,2]
[399520193,1766431841060,-500.0,0.00013879,2]
[399520194,1766431841071,-500.0,0.00013879,2]
[399520195,1766431841083,-315.81704734,0.00013879,2]
[399520196,1766431841094,-500.0,0.00013879,2]
[399520197,1766431841106,-500.0,0.00013879,2]
[399520198,1766431841117,-500.0,0.00013879,2]
[399520199,1766431841128,-500.0,0.00013879,2]
[399520200,1766431841139,-500.0,0.00013879,2]
[399520201,1766431841150,-500.0,0.00013879,2]
[399520202,1766431841166,-500.0,0.00013879,2]
[399520203,1766431841178,-500.0,0.00013879,2]
[399520204,1766431841189,-500.0,0.00013879,2]
[399520205,1766431841200,-500.0,0.00013879,2]
[399520206,1766431841213,-500.0,0.00013879,2]
[399520207,1766431841224,-500.0,0.00013879,2]
[399520208,1766431841235,-500.0,0.00013879,2]
[399520209,1766431841246,-500.0,0.00013879,2]
[399520210,1766431841257,-500.0,0.00013879,2]
[399520211,1766431841268,-492.51650677,0.00013879,2]
[399520212,1766431841280,-500.0,0.00013879,2]
[399520213,1766431841292,-500.0,0.00013879,2]
[399520214,1766431841303,-500.0,0.00013879,2]
[399520215,1766431841315,-500.0,0.00013879,2]
[399520216,1766431841326,-500.0,0.00013879,2]
[399520217,1766431841340,-500.0,0.00013879,2]
[399520218,1766431841351,-500.0,0.00013879,2]
[399520219,1766431841363,-500.0,0.00013879,2]
[399520220,1766431841374,-500.0,0.00013879,2]
[399520221,1766431841384,-500.0,0.00013879,2]
[399520222,1766431841395,-500.0,0.00013879,2]
[399520223,1766431841406,-500.0,0.00013879,2]
[399520224,1766431841417,-500.0,0.00013879,2]
[399520225,1766431841428,-500.0,0.00013879,2]
[399520226,1766431841439,-500.0,0.00013879,2]
[399520227,1766431841449,-500.0,0.00013879,2]
[399520228,1766431841460,-500.0,0.00013879,2]
[399520229,1766431841470,-500.0,0.00013879,2]
[399520230,1766431841481,-500.0,0.00013879,2]
[399520231,1766431841492,-500.0,0.00013879,2]
[399520232,1766431841503,-500.0,0.00013879,2]
[399520233,1766431841514,-500.0,0.00013879,2]
[399520234,1766431841524,-500.0,0.00013879,2]
[399520235,1766431841536,-500.0,0.00013879,2]
[399520236,1766431841546,-500.0,0.00013879,2]
[399520237,1766431841557,-500.0,0.00013879,2]
[399520238,1766431841568,-500.0,0.00013879,2]
[399520239,1766431841579,-500.0,0.00013879,2]
[399520240,1766431841590,-249.99999999,0.00013879,2]
[399520241,1766431841600,-299.56364529,0.0001388,2]
[399520242,1766431841612,-449.55561876,0.0001388,2]
[399520243,1766431841622,-500.0,0.0001388,2]
[399520244,1766431841633,-86492.49,0.00013881,2]
[399520245,1766431841645,-355.0,0.00013901,2]
[399520246,1766431841657,-163.0,0.00013928,2]
[399520247,1766431841668,-166.66,0.00013931,2]
[399520248,1766431841679,-340.0,0.00013956,2]
[399520249,1766431841691,-347.7188,0.00013958,2]
[399520250,1766431841701,-500.0,0.0001411,2]
[399520251,1766431841717,-425.0,0.00014146,2]
[399520252,1766431841729,-359.51458071,0.00014154,2]
[399520253,1766431841740,-166.66,0.00014163,2]
[399520254,1766431841750,-198.0,0.00014174,2]
[399520255,1766431841761,-420.0,0.00014389,2]
[399520256,1766431841772,-420.0,0.00014389,2]
[399520257,1766431841783,-485.0,0.0001439,2]
[399520258,1766431841793,-166.66,0.00014395,2]
[399520259,1766431841804,-1680.0,0.00014407,2]
[399520260,1766431841814,-200.0,0.0001442,2]
[399520261,1766431841825,-500.0,0.0001442,2]
[399520262,1766431841837,-200.0,0.0001442,2]
[399520263,1766431841847,-150.99,0.00014504,2]
[399520264,1766431841858,-879.9,0.00014504,2]
[399520265,1766431841869,-150.99,0.00014504,2]
[399520266,1766431841882,-9999.99,0.00014504,2]
[399520267,1766431841895,-299.99,0.00014504,2]
[399520268,1766431841906,-3015.4,0.00014504,2]
[399520269,1766431841918,-424.7441161,0.00014506,2]
[399520270,1766431841930,-1324.53170706,0.00014538,2]
[399520271,1766431841941,-2500.0,0.00014548,2]
[399520272,1766431841951,-954.12668849,0.00014548,2]
[399520273,1766431841963,-22671.34078723,0.00014548,2]
[399520274,1766431841974,-255.0,0.00014612,2]
[399520275,1766431841984,-166.66,0.00014627,2]
[399520276,1766431841994,-500.0,0.00014647,2]
[399520277,1766431842004,-500.0,0.00014647,2]
[399520278,1766431842015,-500.0,0.00014647,2]
[399520279,1766431842025,-849.89,0.00014647,2]
[399520280,1766431842035,-500.0,0.00014647,2]
[399520281,1766431842046,-500.0,0.00014647,2]
[399520282,1766431842056,-500.0,0.00014647,2]
[399520283,1766431842066,-500.0,0.00014647,2]
[399520284,1766431842076,-500.0,0.00014647,2]
[399520285,1766431842088,-500.0,0.00014647,2]
[399520286,1766431842099,-500.0,0.00014647,2]
[399520287,1766431842110,-500.0,0.00014647,2]
[399520288,1766431842120,-500.0,0.00014647,2]
[399520289,1766431842132,-150.0,0.00014647,2]
[399520290,1766431842142,-500.0,0.00014647,2]
[399520291,1766431842153,-500.0,0.00014647,2]
[399520292,1766431842164,-500.0,0.00014647,2]
[399520293,1766431842175,-500.0,0.00014647,2]
[399520294,1766431842186,-500.0,0.00014647,2]
[399520295,1766431842196,-500.0,0.00014647,2]
[399520296,1766431842207,-500.0,0.00014647,2]
[399520297,1766431842218,-596.20415987,0.00014647,2]
[399520298,1766431842228,-500.0,0.00014647,2]
[399520299,1766431842239,-500.0,0.00014647,2]
[399520300,1766431842250,-500.0,0.00014647,2]
[399520301,1766431842260,-508.77600646,0.00014647,2]
[399520302,1766431842271,-715.12,0.00014647,2]
[399520303,1766431842282,-715.12,0.00014647,2]
[399520304,1766431842292,-715.12,0.00014647,2]
[399520305,1766431842304,-715.12,0.00014647,2]
[399520306,1766431842314,-500.0,0.00014647,2]
[399520307,1766431842326,-500.0,0.00014647,2]
[399520308,1766431842338,-500.0,0.00014647,2]
[399520309,1766431842348,-500.0,0.00014647,2]
[399520310,1766431842358,-500.0,0.00014647,2]
[399520311,1766431842368,-365.85655811,0.00014647,2]
[399520312,1766431842379,-531.25264543,0.00014647,2]
[399520313,1766431842389,-510.86029649,0.00014647,2]
[399520314,1766431842399,-439.65974361,0.00014648,2]
[399520315,1766431842409,-1000.0,0.00014748,2]
[399520316,1766431842419,-1358.3835,0.00014748,2]
[399520317,1766431842429,-22671.34078721,0.00014809,2]
[399520318,1766431842441,-500.0,0.00014847,2]
[399520319,1766431842451,-500.0,0.00014847,2]
[399520320,1766431842462,-500.0,0.00014847,2]
[399520321,1766431842472,-500.0,0.00014847,2]
[399520322,1766431842482,-500.0,0.00014847,2]
[399520323,1766431842492,-166.66,0.00014859,2]
[399520324,1766431842504,-849.89,0.00014921,2]
[399520325,1766431842514,-954.12668848,0.0001494,2]
[399520326,1766431842524,-200.0,0.00014968,2]
[399520327,1766431842534,-500.0,0.00014968,2]
[399520328,1766431842543,-200.0,0.00014968,2]
[399520329,1766431842553,-439.6597436,0.0001497,2]
[399520330,1766431842563,-500.0,0.00015014,2]
[399520331,1766431842573,-881.09,0.00015068,2]
[399520332,1766431842583,-22671.34078721,0.00015071,2]
[399520333,1766431842593,-849.89,0.00015195,2]
[399520334,1766431842603,-439.6597436,0.00015291,2]
[399520335,1766431842613,-954.12668848,0.00015332,2]
[399520336,1766431842623,-22671.34078721,0.00015332,2]
[399520337,1766431842633,-157.13221175,0.00015443,2]
[399520338,1766431842643,-849.89,0.00015468,2]
[399520339,1766431842653,-1961.52,0.00015469,2]
[399520340,1766431842663,-151.0,0.00015472,2]
[399520341,1766431842674,-500.0,0.00015493,2]
[399520342,1766431842685,-200.0,0.00015516,2]
[399520343,1766431842695,-500.0,0.00015516,2]
[399520344,1766431842705,-200.0,0.00015516,2]
[399520345,1766431842715,-22671.34078721,0.00015593,2]
[399520346,1766431842725,-954.12668848,0.00015724,2]
[399520347,1766431842735,-500.0,0.00015735,2]
[399520348,1766431842745,-849.89,0.00015742,2]
[399520349,1766431842755,-291.0,0.00015778,2]
[399520351,1766431842765,-570.0,0.00015778,2]
[399520352,1766431842775,-383.0,0.00015826,2]
[399520353,1766431842785,-2351.0,0.00015847,2]
[399520354,1766431842795,-22671.34078721,0.00015855,2]
[399520355,1766431842805,-10401.29797977,0.00016,4]
[399520356,1766431842815,-849.89,0.00016016,2]
[399520357,1766431842825,-200.0,0.00016064,2]
[399520358,1766431842837,-500.0,0.00016064,2]
[399520360,1766431842847,-200.0,0.00016064,2]
[399520362,1766431842857,-954.12668848,0.00016116,2]
[399520363,1766431842868,-22671.34078721,0.00016116,2]
[399520364,1766431842878,-5524.64,0.00016116,2]
[399520365,1766431842892,-849.89,0.0001629,2]
[399520366,1766431842902,-1835.27293278,0.00016326,2]
[399520367,1766431842911,-157.13221175,0.00016338,2]
[399520368,1766431842924,-22671.34078721,0.00016377,2]
[399520369,1766431842934,-500.0,0.00016386,2]
[399520370,1766431842943,-228.0,0.000164,2]
[399520371,1766431842954,-319.0,0.000164,2]
[399520372,1766431842965,-182.0,0.000164,2]
[399520373,1766431842975,-183.8888322,0.000164,2]
[399520374,1766431842985,-150.0,0.00016425,2]
[399520375,1766431842994,-150.0,0.00016425,2]
[399520376,1766431843004,-150.0,0.00016425,2]
[399520377,1766431843015,-150.0,0.00016425,2]
[399520378,1766431843025,-150.0,0.00016425,2]
[399520379,1766431843036,-150.0,0.00016425,2]
[399520380,1766431843046,-500.0,0.00016425,2]
[399520381,1766431843056,-150.0,0.00016425,2]
[399520382,1766431843066,-280.7089659,0.00016425,2]
[399520383,1766431843076,-151.61208378,0.00016425,2]
[399520384,1766431843087,-150.0,0.00016425,2]
[399520385,1766431843097,-150.0,0.00016425,2]
[399520386,1766431843107,-150.0,0.00016425,2]
[399520387,1766431843118,-500.0,0.00016425,2]
[399520388,1766431843128,-150.0,0.00016425,2]
[399520389,1766431843139,-500.0,0.00016425,2]
[399520390,1766431843149,-150.0,0.00016425,2]
[399520391,1766431843159,-150.0,0.00016425,2]
[399520392,1766431843170,-150.92912493,0.00016425,2]
[399520393,1766431843180,-150.0,0.00016425,2]
[399520394,1766431843190,-151.41928743,0.00016425,2]
[399520395,1766431843200,-152.83861574,0.00016425,2]
[399520396,1766431843211,-151.1761116,0.00016425,2]
[399520397,1766431843221,-150.52319248,0.00016425,2]
[399520398,1766431843231,-175.15780036,0.00016425,2]
[399520399,1766431843241,-150.83427243,0.00016425,2]
[399520400,1766431843252,-500.0,0.00016437,2]
[399520401,1766431843262,-500.0,0.00016437,2]
[399520402,1766431843272,-500.0,0.00016437,2]
[399520403,1766431843283,-715.12,0.00016437,2]
[399520404,1766431843293,-2972.2,0.00016438,2]
[399520405,1766431843304,-150.0,0.00016438,2]
[399520406,1766431843315,-722.59090289,0.00016438,2]
[399520407,1766431843325,-722.59090289,0.00016438,2]
[399520408,1766431843337,-722.59090289,0.00016438,2]
[399520409,1766431843347,-722.59090289,0.00016438,2]
[399520410,1766431843358,-225.92,0.00016438,2]
[399520411,1766431843369,-600.0,0.00016438,2]
[399520415,1766431843381,-800.0,0.00016438,2]
[399520416,1766431843695,-881.09,0.00016438,2]
[399520417,1766431843705,-152.98420133,0.00016452,2]
[399520418,1766431843715,-150.0,0.00016452,2]
[399520419,1766431843724,-150.0,0.00016452,2]
[399520420,1766431843734,-600.0,0.00016452,2]
[399520421,1766431843743,-150.0,0.00016452,2]
[399520422,1766431843752,-150.0,0.00016452,2]
[399520423,1766431843762,-500.0,0.00016452,2]
[399520424,1766431843772,-504.41502637,0.00016452,2]
[399520425,1766431843782,-150.0,0.00016452,2]
[399520426,1766431843791,-150.0,0.00016452,2]
[399520427,1766431843801,-150.0,0.00016465,2]
[399520428,1766431843810,-150.0,0.0001648,2]
[399520429,1766431843820,-200.0,0.0001648,2]
[399520430,1766431843829,-150.0,0.0001648,2]
[399520431,1766431843839,-150.0,0.0001648,2]
[399520432,1766431843848,-500.0,0.0001648,2]
[399520433,1766431843858,-232.09963481,0.0001648,2]
[399520434,1766431843868,-253.42007769,0.00016493,2]
[399520435,1766431843877,-150.0,0.00016507,2]
[399520436,1766431843889,-150.0,0.00016507,2]
[399520437,1766431843898,-150.0,0.00016507,2]
[399520438,1766431843909,-250.0,0.00016507,2]
[399520439,1766431843920,-954.12668848,0.00016508,2]
[399520440,1766431843931,-151.89485046,0.00016519,2]
[399520441,1766431843941,-4800.86,0.00016533,2]
[399520442,1766431843950,-304.078,0.00016533,2]
[399520443,1766431843961,-250.0,0.00016535,2]
[399520444,1766431843971,-150.0,0.00016535,2]
[399520445,1766431843980,-250.0,0.00016535,2]
[399520446,1766431843992,-201.31035432,0.00016562,2]
[399520447,1766431844004,-849.89,0.00016564,2]
[399520448,1766431844014,-358.71934003,0.000166,2]
[399520449,1766431844024,-207.4,0.00016611,2]
[399520450,1766431844033,-200.0,0.00016612,2]
[399520451,1766431844043,-500.0,0.00016612,2]
[399520452,1766431844052,-200.0,0.00016612,2]
[399520453,1766431844061,-22671.34078721,0.00016639,2]
[399520454,1766431844071,-305.0,0.00016646,2]
[399520455,1766431844080,-305.0,0.00016649,2]
[399520456,1766431844089,-305.0,0.00016681,2]
[399520457,1766431844099,-271.62517887,0.00016699,2]
[399520458,1766431844107,-577.0,0.00016699,2]
[399520459,1766431844117,-500.0,0.00016699,2]
[399520460,1766431844127,-500.0,0.00016699,2]
[399520461,1766431844137,-150.0,0.00016699,2]
[399520462,1766431844147,-305.0,0.00016702,2]
[399520463,1766431844156,-577.0,0.00016726,2]
[399520464,1766431844166,-500.0,0.00016726,2]
[399520465,1766431844175,-500.0,0.00016726,2]
[399520466,1766431844185,-150.0,0.00016726,2]
[399520467,1766431844195,-577.0,0.00016754,2]
[399520468,1766431844205,-500.0,0.00016754,2]
[399520469,1766431844215,-500.0,0.00016754,2]
[399520470,1766431844225,-150.0,0.00016754,2]
[399520471,1766431844234,-225.94,0.00016765,2]
[399520472,1766431844244,-577.0,0.00016781,2]